[Event "Late-Titled-Tuesday-Blitz-June-25-2024"]
[Site "Chess.com"]
[Date "2024.06.25"]
[Round "10"]
[White "TERMINATOR_PC"]
[Black "HamedWafa4"]
[Result "0-1"]
[WhiteElo "2607"]
[BlackElo "2774"]
[TimeControl "180+1"]
[EndTime "15:55:39 PDT"]
[Termination "HamedWafa4 won on time"]

1. c4 {[%clk 0:02:49.2]} 1... e5 {[%clk 0:02:58.4]} 2. Nc3 {[%clk 0:02:49.4]}
2... Bb4 {[%clk 0:02:58.4]} 3. g3 {[%clk 0:02:50.3]} 3... Bxc3 {[%clk
0:02:58.3]} 4. bxc3 {[%clk 0:02:50.8]} 4... Nc6 {[%clk 0:02:58.4]} 5. Bg2 {[%clk
0:02:51.3]} 5... d6 {[%clk 0:02:58.9]} 6. d3 {[%clk 0:02:51.8]} 6... f5 {[%clk
0:02:59.3]} 7. Nf3 {[%clk 0:02:46.8]} 7... Nf6 {[%clk 0:02:59.2]} 8. c5 {[%clk
0:02:31]} 8... dxc5 {[%clk 0:02:55.7]} 9. Qb3 {[%clk 0:02:31.3]} 9... Qe7 {[%clk
0:02:51.7]} 10. O-O {[%clk 0:02:30.1]} 10... Be6 {[%clk 0:02:50.9]} 11. Qxb7
{[%clk 0:02:28.7]} 11... Kd7 {[%clk 0:02:37.7]} 12. Bg5 {[%clk 0:02:16.9]} 12...
Rhb8 {[%clk 0:02:32.9]} 13. Qa6 {[%clk 0:02:16.8]} 13... Rb6 {[%clk 0:02:32.9]}
14. Qa4 {[%clk 0:02:14.3]} 14... Qd6 {[%clk 0:02:29.3]} 15. Rfd1 {[%clk
0:02:08.1]} 15... Rab8 {[%clk 0:02:22.8]} 16. d4 {[%clk 0:02:02.7]} 16... cxd4
{[%clk 0:02:18.3]} 17. cxd4 {[%clk 0:02:03.1]} 17... e4 {[%clk 0:02:04.6]} 18.
Ne5+ {[%clk 0:02:01.9]} 18... Ke7 {[%clk 0:01:55.7]} 19. Rac1 {[%clk 0:01:48.9]}
19... Nb4 {[%clk 0:01:44.1]} 20. Qxa7 {[%clk 0:01:41.3]} 20... R8b7 {[%clk
0:01:35.4]} 21. Qa8 {[%clk 0:01:37.2]} 21... Rb8 {[%clk 0:01:34.3]} 22. Qa5
{[%clk 0:01:37.1]} 22... R8b7 {[%clk 0:01:20.5]} 23. Bf4 {[%clk 0:01:30.6]}
23... Ra6 {[%clk 0:01:16.9]} 24. Qc5 {[%clk 0:00:48.8]} 24... Qxc5 {[%clk
0:01:14]} 25. Rxc5 {[%clk 0:00:49.7]} 25... Nxa2 {[%clk 0:00:43.2]} 26. d5
{[%clk 0:00:45.3]} 26... Bxd5 {[%clk 0:00:32.3]} 27. Bh3 {[%clk 0:00:33]} 27...
c6 {[%clk 0:00:19.6]} 28. Bxf5 {[%clk 0:00:29.8]} 28... g6 {[%clk 0:00:20.1]}
29. Bc8 {[%clk 0:00:27.9]} 29... Rba7 {[%clk 0:00:18.2]} 30. Bxa6 {[%clk
0:00:27.8]} 30... Rxa6 {[%clk 0:00:19.1]} 31. Bg5 {[%clk 0:00:24.9]} 31... Kd6
{[%clk 0:00:17.6]} 32. Bxf6 {[%clk 0:00:07]} 32... Kxc5 {[%clk 0:00:17.2]} 33.
Be7+ {[%clk 0:00:07.9]} 33... Kb6 {[%clk 0:00:13.7]} 34. f3 {[%clk 0:00:04.9]}
34... exf3 {[%clk 0:00:13.7]} 35. exf3 {[%clk 0:00:05.8]} 35... Nc3 {[%clk
0:00:14]} 36. Re1 {[%clk 0:00:05.2]} 36... Ra2 {[%clk 0:00:13.9]} 37. Nd7+
{[%clk 0:00:02.5]} 37... Kc7 {[%clk 0:00:13.2]} 38. Nc5 {[%clk 0:00:02.5]} 38...
Bxf3 {[%clk 0:00:12.4]} 39. Bf6 {[%clk 0:00:01.5]} 39... Ne2+ {[%clk 0:00:12.3]}
40. Kf2 {[%clk 0:00:01.1]} 40... Bh5 {[%clk 0:00:10.8]} 0-1

[Event "Late-Titled-Tuesday-Blitz-June-25-2024"]
[Site "Chess.com"]
[Date "2024.06.25"]
[Round "10"]
[White "smallbaba"]
[Black "ArchibaldCerveza29"]
[Result "1-0"]
[WhiteElo "2632"]
[BlackElo "2432"]
[TimeControl "180+1"]
[EndTime "15:55:42 PDT"]
[Termination "smallbaba won by resignation"]

1. e4 {[%clk 0:03:00.9]} 1... e5 {[%clk 0:02:59.9]} 2. Nf3 {[%clk 0:02:59.3]}
2... Nf6 {[%clk 0:02:58.6]} 3. d4 {[%clk 0:02:59.7]} 3... Nxe4 {[%clk
0:02:57.9]} 4. Bd3 {[%clk 0:03:00.2]} 4... d5 {[%clk 0:02:56]} 5. Nxe5 {[%clk
0:03:00.1]} 5... Nd7 {[%clk 0:02:50]} 6. Nc3 {[%clk 0:03:00.2]} 6... Nxe5 {[%clk
0:02:22.3]} 7. dxe5 {[%clk 0:03:00.4]} 7... Nxc3 {[%clk 0:02:19.3]} 8. bxc3
{[%clk 0:03:01.3]} 8... Bc5 {[%clk 0:02:16.8]} 9. O-O {[%clk 0:03:01.7]} 9...
O-O {[%clk 0:02:13.6]} 10. Rb1 {[%clk 0:03:02.2]} 10... Qh4 {[%clk 0:02:05.6]}
11. Qf3 {[%clk 0:02:53.7]} 11... c6 {[%clk 0:01:56.5]} 12. Be3 {[%clk
0:02:46.7]} 12... Bxe3 {[%clk 0:01:48]} 13. Qxe3 {[%clk 0:02:46]} 13... Re8
{[%clk 0:01:41.4]} 14. Rb4 {[%clk 0:02:44.8]} 14... Qe7 {[%clk 0:01:33.6]} 15.
Re1 {[%clk 0:02:20.5]} 15... b5 {[%clk 0:01:25.1]} 16. Qg3 {[%clk 0:02:06.9]}
16... Be6 {[%clk 0:01:16.9]} 17. Rh4 {[%clk 0:02:04.6]} 17... g6 {[%clk
0:01:09.2]} 18. Kh1 {[%clk 0:01:55]} 18... Qf8 {[%clk 0:01:03.8]} 19. f4 {[%clk
0:01:49.8]} 19... Qg7 {[%clk 0:00:55.8]} 20. Rf1 {[%clk 0:01:41.4]} 20... Re7
{[%clk 0:00:42.5]} 21. Qg5 {[%clk 0:01:16.3]} 21... Rae8 {[%clk 0:00:36.5]} 22.
g4 {[%clk 0:01:14.3]} 22... Bd7 {[%clk 0:00:29.6]} 23. Rh6 {[%clk 0:01:08.5]}
23... c5 {[%clk 0:00:27.9]} 24. Be2 {[%clk 0:00:59.1]} 24... c4 {[%clk
0:00:26.4]} 25. Bf3 {[%clk 0:00:56.9]} 25... Bc6 {[%clk 0:00:25.1]} 26. Rd1
{[%clk 0:00:52.7]} 26... Bb7 {[%clk 0:00:24.2]} 27. Rh3 {[%clk 0:00:41.7]} 27...
Rd7 {[%clk 0:00:21.8]} 28. Rd4 {[%clk 0:00:36.3]} 28... f6 {[%clk 0:00:21.3]}
29. exf6 {[%clk 0:00:34.9]} 29... Re1+ {[%clk 0:00:21.2]} 30. Kg2 {[%clk
0:00:35.2]} 30... Qf7 {[%clk 0:00:20.6]} 31. Qh4 {[%clk 0:00:32.7]} 31... Rc1
{[%clk 0:00:20.1]} 32. Rd2 {[%clk 0:00:21.8]} 32... b4 {[%clk 0:00:18.9]} 33.
cxb4 {[%clk 0:00:20.6]} 33... c3 {[%clk 0:00:19.4]} 34. Rf2 {[%clk 0:00:20.7]}
34... d4 {[%clk 0:00:19.1]} 35. Bxb7 {[%clk 0:00:20.6]} 35... Rxb7 {[%clk
0:00:20]} 36. Qg3 {[%clk 0:00:18.1]} 36... Rxb4 {[%clk 0:00:18.9]} 37. Qf3
{[%clk 0:00:17.5]} 37... h5 {[%clk 0:00:17.4]} 38. gxh5 {[%clk 0:00:16.9]} 38...
gxh5 {[%clk 0:00:09.3]} 39. Rg3+ {[%clk 0:00:15.8]} 39... Kh7 {[%clk 0:00:09.3]}
40. Rg7+ {[%clk 0:00:15.7]} 40... Qxg7+ {[%clk 0:00:09.2]} 41. fxg7 {[%clk
0:00:16.6]} 41... Kxg7 {[%clk 0:00:09.8]} 42. Qg3+ {[%clk 0:00:16]} 42... Kf7
{[%clk 0:00:09.3]} 43. f5 {[%clk 0:00:16.5]} 43... Rb2 {[%clk 0:00:09.4]} 44.
Qg6+ {[%clk 0:00:16.6]} 44... Ke7 {[%clk 0:00:09.4]} 45. Qe6+ {[%clk 0:00:16.8]}
45... Kd8 {[%clk 0:00:10]} 46. f6 {[%clk 0:00:17.2]} 46... Rbxc2 {[%clk
0:00:09.8]} 47. Qe7+ {[%clk 0:00:17.6]} 47... Kc8 {[%clk 0:00:09.7]} 48. f7
{[%clk 0:00:18.1]} 48... Rxf2+ {[%clk 0:00:09.8]} 49. Kxf2 {[%clk 0:00:19]}
49... Rc2+ {[%clk 0:00:10.5]} 50. Kg3 {[%clk 0:00:19.1]} 1-0

[Event "Late-Titled-Tuesday-Blitz-June-25-2024"]
[Site "Chess.com"]
[Date "2024.06.25"]
[Round "10"]
[White "LUISMIGUELOV"]
[Black "CoachVadim"]
[Result "0-1"]
[WhiteElo "2241"]
[BlackElo "2407"]
[TimeControl "180+1"]
[EndTime "15:55:45 PDT"]
[Termination "CoachVadim won by resignation"]

1. d4 {[%clk 0:03:00.9]} 1... d5 {[%clk 0:03:00]} 2. c3 {[%clk 0:03:00.6]} 2...
Nf6 {[%clk 0:02:59.8]} 3. Bf4 {[%clk 0:03:00]} 3... c5 {[%clk 0:02:58.1]} 4. e3
{[%clk 0:02:58.9]} 4... Nc6 {[%clk 0:02:57.3]} 5. Bd3 {[%clk 0:02:58.5]} 5...
Qb6 {[%clk 0:02:52]} 6. Qb3 {[%clk 0:02:57.4]} 6... c4 {[%clk 0:02:52.3]} 7.
Qxb6 {[%clk 0:02:56.9]} 7... axb6 {[%clk 0:02:53.2]} 8. Bc2 {[%clk 0:02:55.8]}
8... b5 {[%clk 0:02:53.7]} 9. Ne2 {[%clk 0:02:48.7]} 9... b4 {[%clk 0:02:52.7]}
10. Nd2 {[%clk 0:02:44.1]} 10... b3 {[%clk 0:02:36.7]} 11. Bb1 {[%clk
0:02:42.8]} 11... g6 {[%clk 0:02:17.4]} 12. O-O {[%clk 0:02:42]} 12... Bg7
{[%clk 0:02:16.2]} 13. a3 {[%clk 0:02:30.6]} 13... Bf5 {[%clk 0:02:09.8]} 14.
Bxf5 {[%clk 0:02:24.8]} 14... gxf5 {[%clk 0:02:09.7]} 15. f3 {[%clk 0:02:24.1]}
15... Nh5 {[%clk 0:02:01.3]} 16. e4 {[%clk 0:02:16.7]} 16... Nxf4 {[%clk
0:01:50.3]} 17. Nxf4 {[%clk 0:02:15.9]} 17... Bh6 {[%clk 0:01:50.5]} 18. g3
{[%clk 0:02:14.5]} 18... Rg8 {[%clk 0:01:38]} 19. Kf2 {[%clk 0:02:09.4]} 19...
Bxf4 {[%clk 0:01:30.8]} 20. gxf4 {[%clk 0:02:08.9]} 20... fxe4 {[%clk
0:01:29.8]} 21. fxe4 {[%clk 0:02:08.4]} 21... e6 {[%clk 0:01:30]} 22. f5 {[%clk
0:02:06.8]} 22... Kd7 {[%clk 0:01:14.6]} 23. Rg1 {[%clk 0:02:06.1]} 23... b5
{[%clk 0:01:06.3]} 24. Rxg8 {[%clk 0:02:04.4]} 24... Rxg8 {[%clk 0:01:07.2]} 25.
Rg1 {[%clk 0:02:04.1]} 25... Rxg1 {[%clk 0:01:04.7]} 26. Kxg1 {[%clk 0:02:03.6]}
26... dxe4 {[%clk 0:01:01.2]} 27. fxe6+ {[%clk 0:02:00.9]} 27... Kxe6 {[%clk
0:00:56.7]} 28. Nxe4 {[%clk 0:02:00.5]} 28... h6 {[%clk 0:00:45.3]} 29. Kf2
{[%clk 0:01:59.3]} 29... f5 {[%clk 0:00:42.5]} 30. Nc5+ {[%clk 0:01:55.1]} 30...
Kd5 {[%clk 0:00:42.5]} 31. Ke3 {[%clk 0:01:48.5]} 31... Ne7 {[%clk 0:00:28.7]}
32. Kf4 {[%clk 0:01:44.3]} 32... Kd6 {[%clk 0:00:28]} 33. h4 {[%clk 0:01:37.6]}
33... Kd5 {[%clk 0:00:16.8]} 34. Nd7 {[%clk 0:01:33.6]} 34... Kd6 {[%clk
0:00:14.2]} 35. Nf6 {[%clk 0:01:31.9]} 35... Ke6 {[%clk 0:00:12.4]} 36. Nh5
{[%clk 0:01:31.5]} 36... Nd5+ {[%clk 0:00:12.6]} 37. Kf3 {[%clk 0:01:24.9]}
37... Nxc3 {[%clk 0:00:13]} 38. Nf4+ {[%clk 0:01:24.4]} 38... Kd6 {[%clk
0:00:11.6]} 39. h5 {[%clk 0:01:03.3]} 39... Na4 {[%clk 0:00:07.8]} 40. Ne2
{[%clk 0:01:01.7]} 40... Nxb2 {[%clk 0:00:07.1]} 41. Nc3 {[%clk 0:01:01.2]}
41... Na4 {[%clk 0:00:05.2]} 42. Nxb5+ {[%clk 0:01:00.9]} 42... Kd5 {[%clk
0:00:05.8]} 43. Ke3 {[%clk 0:00:49.7]} 43... b2 {[%clk 0:00:06.4]} 44. Nc7+
{[%clk 0:00:49.1]} 44... Kc6 {[%clk 0:00:06.3]} 45. Ne6 {[%clk 0:00:40.8]} 45...
b1=Q {[%clk 0:00:06.5]} 46. Kf4 {[%clk 0:00:38.1]} 46... Qe4+ {[%clk 0:00:06.2]}
47. Kg3 {[%clk 0:00:37.4]} 47... Qxe6 {[%clk 0:00:06.5]} 48. d5+ {[%clk
0:00:37.9]} 48... Kxd5 {[%clk 0:00:06.4]} 49. Kh4 {[%clk 0:00:38.1]} 49... Qe4+
{[%clk 0:00:05.6]} 50. Kh3 {[%clk 0:00:37.8]} 50... Qg4+ {[%clk 0:00:04.9]} 51.
Kh2 {[%clk 0:00:37.5]} 51... Ke4 {[%clk 0:00:05.4]} 52. Kh1 {[%clk 0:00:37.1]}
52... Kf3 {[%clk 0:00:06.1]} 0-1

[Event "Late-Titled-Tuesday-Blitz-June-25-2024"]
[Site "Chess.com"]
[Date "2024.06.25"]
[Round "10"]
[White "koncheto"]
[Black "Bryanl106"]
[Result "1-0"]
[WhiteElo "2586"]
[BlackElo "2705"]
[TimeControl "180+1"]
[EndTime "15:55:52 PDT"]
[Termination "koncheto won by resignation"]

1. e4 {[%clk 0:03:00.2]} 1... e5 {[%clk 0:03:00.1]} 2. Nf3 {[%clk 0:03:00.5]}
2... Nc6 {[%clk 0:03:00.7]} 3. Bc4 {[%clk 0:03:01.1]} 3... Nf6 {[%clk
0:03:00.8]} 4. d3 {[%clk 0:03:01.7]} 4... Bc5 {[%clk 0:02:59.5]} 5. c3 {[%clk
0:03:02.1]} 5... d6 {[%clk 0:02:59]} 6. O-O {[%clk 0:03:02.3]} 6... a5 {[%clk
0:02:59.2]} 7. Nbd2 {[%clk 0:03:02.4]} 7... h6 {[%clk 0:02:59.5]} 8. Re1 {[%clk
0:03:02]} 8... O-O {[%clk 0:02:59.9]} 9. h3 {[%clk 0:03:01.9]} 9... a4 {[%clk
0:02:59.6]} 10. Nf1 {[%clk 0:02:54.6]} 10... Bd7 {[%clk 0:02:57.2]} 11. Bb5
{[%clk 0:02:44.9]} 11... Ne7 {[%clk 0:02:56.8]} 12. Bxd7 {[%clk 0:02:39.6]}
12... Nxd7 {[%clk 0:02:57.7]} 13. d4 {[%clk 0:02:40.5]} 13... Bb6 {[%clk
0:02:56.7]} 14. Ng3 {[%clk 0:02:40.3]} 14... f5 {[%clk 0:02:54]} 15. exf5 {[%clk
0:02:30]} 15... Nxf5 {[%clk 0:02:52.8]} 16. Nxf5 {[%clk 0:02:19.1]} 16... Rxf5
{[%clk 0:02:51.4]} 17. dxe5 {[%clk 0:02:01.4]} 17... Nxe5 {[%clk 0:02:37.7]} 18.
Nd4 {[%clk 0:02:01.9]} 18... Rf7 {[%clk 0:02:22.5]} 19. Be3 {[%clk 0:02:01.9]}
19... Qf6 {[%clk 0:02:17.7]} 20. Qe2 {[%clk 0:01:51.1]} 20... Raf8 {[%clk
0:02:15.7]} 21. Qb5 {[%clk 0:01:47.9]} 21... Qg6 {[%clk 0:02:10.7]} 22. Kh1
{[%clk 0:01:42.1]} 22... Rxf2 {[%clk 0:01:48.2]} 23. Bxf2 {[%clk 0:01:32.8]}
23... Rxf2 {[%clk 0:01:49.1]} 24. Qd5+ {[%clk 0:01:15.4]} 24... Kh8 {[%clk
0:01:45.7]} 25. Qe4 {[%clk 0:01:00.4]} 25... Qxe4 {[%clk 0:01:45.5]} 26. Rxe4
{[%clk 0:00:58.9]} 26... Rxb2 {[%clk 0:01:46.4]} 27. Ne6 {[%clk 0:00:37.9]}
27... a3 {[%clk 0:01:30]} 28. Ra4 {[%clk 0:00:37.9]} 28... Re2 {[%clk
0:01:15.9]} 29. Ra8+ {[%clk 0:00:35.2]} 29... Kh7 {[%clk 0:01:15.3]} 30. Nf8+
{[%clk 0:00:35.2]} 30... Kg8 {[%clk 0:01:15.7]} 31. Nd7+ {[%clk 0:00:34.4]}
31... Kf7 {[%clk 0:01:15.9]} 32. Nxb6 {[%clk 0:00:33.6]} 32... cxb6 {[%clk
0:01:16.8]} 33. Rxa3 {[%clk 0:00:34.2]} 33... Nc4 {[%clk 0:01:07.3]} 34. Ra7
{[%clk 0:00:29.6]} 34... Na5 {[%clk 0:01:07.7]} 35. Rb1 {[%clk 0:00:25.1]} 35...
Rxa2 {[%clk 0:00:57.1]} 36. Rxb6 {[%clk 0:00:24.7]} 36... Ke6 {[%clk 0:00:46.8]}
37. Rb5 {[%clk 0:00:20.4]} 37... Ra1+ {[%clk 0:00:45.4]} 38. Kh2 {[%clk
0:00:20.8]} 38... Nb3 {[%clk 0:00:46.3]} 39. Rxa1 {[%clk 0:00:18]} 39... Nxa1
{[%clk 0:00:46.5]} 40. Rxb7 {[%clk 0:00:18.8]} 40... g5 {[%clk 0:00:44.9]} 41.
Kg3 {[%clk 0:00:12.6]} 41... Nc2 {[%clk 0:00:44.8]} 42. Kg4 {[%clk 0:00:13.2]}
42... Ne3+ {[%clk 0:00:45.2]} 43. Kf3 {[%clk 0:00:10.9]} 43... Nd5 {[%clk
0:00:43.5]} 44. c4 {[%clk 0:00:10.2]} 44... Nf6 {[%clk 0:00:44]} 45. Rb5 {[%clk
0:00:08.5]} 45... Nd7 {[%clk 0:00:43.8]} 46. Ke4 {[%clk 0:00:04.8]} 46... Nc5+
{[%clk 0:00:36.9]} 47. Rxc5 {[%clk 0:00:03.6]} 47... dxc5 {[%clk 0:00:27.6]} 48.
g4 {[%clk 0:00:04.3]} 48... Kd6 {[%clk 0:00:20.7]} 49. Kf5 {[%clk 0:00:04.7]}
49... Kd7 {[%clk 0:00:18.6]} 50. Ke5 {[%clk 0:00:04.1]} 50... Kc7 {[%clk
0:00:17.9]} 51. Kd5 {[%clk 0:00:04.4]} 51... Kb6 {[%clk 0:00:18.5]} 52. Kd6
{[%clk 0:00:04.9]} 52... Ka5 {[%clk 0:00:18.8]} 53. Kxc5 {[%clk 0:00:05.8]}
53... Ka4 {[%clk 0:00:19.5]} 54. Kb6 {[%clk 0:00:06.1]} 54... Kb3 {[%clk
0:00:20.4]} 55. c5 {[%clk 0:00:06.7]} 55... Kc3 {[%clk 0:00:21.3]} 56. c6 {[%clk
0:00:07.5]} 56... Kd3 {[%clk 0:00:22.2]} 57. c7 {[%clk 0:00:08]} 57... Kc3
{[%clk 0:00:23.1]} 58. c8=Q+ {[%clk 0:00:08.6]} 58... Kd4 {[%clk 0:00:23.7]} 59.
Qf5 {[%clk 0:00:09.3]} 59... Ke3 {[%clk 0:00:24.6]} 60. Qg6 {[%clk 0:00:09.9]}
60... Kf4 {[%clk 0:00:25.5]} 61. Qxh6 {[%clk 0:00:09.5]} 61... Kg3 {[%clk
0:00:26.4]} 1-0

[Event "Late-Titled-Tuesday-Blitz-June-25-2024"]
[Site "Chess.com"]
[Date "2024.06.25"]
[Round "10"]
[White "Crazy_girl99"]
[Black "Frankie_Badacsonyi"]
[Result "0-1"]
[WhiteElo "2670"]
[BlackElo "2516"]
[TimeControl "180+1"]
[EndTime "15:55:52 PDT"]
[Termination "Frankie_Badacsonyi won by checkmate"]

1. e4 {[%clk 0:02:59.9]} 1... c6 {[%clk 0:02:58.1]} 2. d4 {[%clk 0:02:59.5]}
2... d5 {[%clk 0:02:55.6]} 3. e5 {[%clk 0:02:59.7]} 3... Bf5 {[%clk 0:02:55.2]}
4. Nf3 {[%clk 0:02:56.7]} 4... e6 {[%clk 0:02:55.4]} 5. Be2 {[%clk 0:02:53.6]}
5... Ne7 {[%clk 0:02:55.3]} 6. O-O {[%clk 0:02:53.2]} 6... Ng6 {[%clk
0:02:55.5]} 7. c4 {[%clk 0:02:53.3]} 7... Bg4 {[%clk 0:02:35.1]} 8. b3 {[%clk
0:02:45.6]} 8... Be7 {[%clk 0:02:30.4]} 9. c5 {[%clk 0:02:36.5]} 9... f6 {[%clk
0:02:24.7]} 10. exf6 {[%clk 0:02:31.2]} 10... Bxf6 {[%clk 0:02:23]} 11. Be3
{[%clk 0:02:31.9]} 11... O-O {[%clk 0:02:21.6]} 12. Nc3 {[%clk 0:02:30.1]} 12...
Bxf3 {[%clk 0:02:20.2]} 13. Bxf3 {[%clk 0:02:28.7]} 13... e5 {[%clk 0:02:20.8]}
14. Bh5 {[%clk 0:02:23.3]} 14... Nd7 {[%clk 0:02:18.1]} 15. Bxg6 {[%clk
0:02:19.7]} 15... hxg6 {[%clk 0:02:19]} 16. Qg4 {[%clk 0:02:19.6]} 16... exd4
{[%clk 0:02:15.7]} 17. Bxd4 {[%clk 0:02:18.8]} 17... Bxd4 {[%clk 0:02:16]} 18.
Qxd4 {[%clk 0:02:18.9]} 18... Qf6 {[%clk 0:02:16.3]} 19. Qb4 {[%clk 0:02:13.7]}
19... Rab8 {[%clk 0:02:02.8]} 20. Rad1 {[%clk 0:02:11.1]} 20... Qe7 {[%clk
0:01:55.6]} 21. Na4 {[%clk 0:02:04.8]} 21... b5 {[%clk 0:01:49.4]} 22. Nb2
{[%clk 0:01:58]} 22... Ra8 {[%clk 0:01:49.1]} 23. Nd3 {[%clk 0:01:55.4]} 23...
a5 {[%clk 0:01:48.6]} 24. Qd4 {[%clk 0:01:53.7]} 24... Qf6 {[%clk 0:01:48.5]}
25. Qg4 {[%clk 0:01:51.9]} 25... Qf5 {[%clk 0:01:46.4]} 26. Qg3 {[%clk
0:01:51.6]} 26... b4 {[%clk 0:01:38.6]} 27. Rfe1 {[%clk 0:01:42.8]} 27... Rae8
{[%clk 0:01:35.1]} 28. h3 {[%clk 0:01:39.8]} 28... Nf6 {[%clk 0:01:20]} 29. Re5
{[%clk 0:01:22.9]} 29... Rxe5 {[%clk 0:01:17.1]} 30. Qxe5 {[%clk 0:01:22.6]}
30... Ne4 {[%clk 0:01:04.3]} 31. Qxf5 {[%clk 0:01:20.9]} 31... gxf5 {[%clk
0:01:01.9]} 32. f3 {[%clk 0:01:15]} 32... Nc3 {[%clk 0:00:56.4]} 33. Rd2 {[%clk
0:01:13.9]} 33... Re8 {[%clk 0:00:55.8]} 34. Kf2 {[%clk 0:01:14.1]} 34... Kf7
{[%clk 0:00:53.6]} 35. h4 {[%clk 0:01:13.9]} 35... Kf6 {[%clk 0:00:53.7]} 36.
Nf4 {[%clk 0:01:07.2]} 36... g6 {[%clk 0:00:51.1]} 37. g3 {[%clk 0:01:01.9]}
37... Re7 {[%clk 0:00:45.1]} 38. Rc2 {[%clk 0:01:00.3]} 38... Nd1+ {[%clk
0:00:40.9]} 39. Kg1 {[%clk 0:00:53.5]} 39... Re1+ {[%clk 0:00:40.6]} 40. Kh2
{[%clk 0:00:49.8]} 40... Nc3 {[%clk 0:00:36.1]} 41. g4 {[%clk 0:00:44.6]} 41...
fxg4 {[%clk 0:00:31.8]} 42. fxg4 {[%clk 0:00:45.5]} 42... Ra1 {[%clk 0:00:28.6]}
43. Kh3 {[%clk 0:00:33.8]} 43... Rxa2 {[%clk 0:00:28.7]} 44. Rc1 {[%clk
0:00:33.5]} 44... Rf2 {[%clk 0:00:26.3]} 45. g5+ {[%clk 0:00:27.1]} 45... Kf5
{[%clk 0:00:24.7]} 46. Ng2 {[%clk 0:00:27.2]} 46... Rf3+ {[%clk 0:00:23.3]} 47.
Kh2 {[%clk 0:00:26.3]} 47... d4 {[%clk 0:00:22.5]} 48. Ne1 {[%clk 0:00:16.1]}
48... Rf2+ {[%clk 0:00:22.7]} 49. Kg3 {[%clk 0:00:16.1]} 49... Ne4+ {[%clk
0:00:22.1]} 50. Kh3 {[%clk 0:00:14.9]} 50... Re2 {[%clk 0:00:18.9]} 51. Ng2
{[%clk 0:00:07.5]} 51... d3 {[%clk 0:00:16.8]} 52. Rf1+ {[%clk 0:00:07.3]} 52...
Ke5 {[%clk 0:00:15.3]} 53. Nf4 {[%clk 0:00:05.9]} 53... Re3+ {[%clk 0:00:14.7]}
54. Kg4 {[%clk 0:00:05.7]} 54... Rg3# {[%clk 0:00:14.2]} 0-1

[Event "Late-Titled-Tuesday-Blitz-June-25-2024"]
[Site "Chess.com"]
[Date "2024.06.25"]
[Round "10"]
[White "Tigranpatagonian"]
[Black "HaryKane"]
[Result "1-0"]
[WhiteElo "2474"]
[BlackElo "2588"]
[TimeControl "180+1"]
[EndTime "15:55:55 PDT"]
[Termination "Tigranpatagonian won on time"]

1. d4 {[%clk 0:02:59.6]} 1... Nf6 {[%clk 0:02:57.8]} 2. c4 {[%clk 0:03:00.1]}
2... e6 {[%clk 0:02:57.6]} 3. Nc3 {[%clk 0:02:59.7]} 3... Bb4 {[%clk 0:02:55.6]}
4. e3 {[%clk 0:02:59.6]} 4... O-O {[%clk 0:02:52.3]} 5. Bd3 {[%clk 0:02:59.5]}
5... d5 {[%clk 0:02:47.9]} 6. Nf3 {[%clk 0:02:59.5]} 6... c5 {[%clk 0:02:42.1]}
7. O-O {[%clk 0:02:59.3]} 7... cxd4 {[%clk 0:02:41.8]} 8. exd4 {[%clk
0:02:58.7]} 8... dxc4 {[%clk 0:02:41.3]} 9. Bxc4 {[%clk 0:02:59.2]} 9... Nbd7
{[%clk 0:02:38.3]} 10. Bg5 {[%clk 0:02:56.3]} 10... Nb6 {[%clk 0:02:38.1]} 11.
Bb3 {[%clk 0:02:55.2]} 11... Be7 {[%clk 0:02:37.6]} 12. Qd3 {[%clk 0:02:48.7]}
12... h6 {[%clk 0:02:31.3]} 13. Bh4 {[%clk 0:02:44.7]} 13... Nh7 {[%clk
0:01:51.2]} 14. Bc2 {[%clk 0:02:37.2]} 14... g6 {[%clk 0:01:51.1]} 15. Bxe7
{[%clk 0:02:33.9]} 15... Qxe7 {[%clk 0:01:52]} 16. Rfe1 {[%clk 0:02:34.1]} 16...
Rd8 {[%clk 0:01:46.5]} 17. Rad1 {[%clk 0:02:31]} 17... Bd7 {[%clk 0:01:30.7]}
18. d5 {[%clk 0:02:24.5]} 18... Be8 {[%clk 0:01:22.4]} 19. Qe3 {[%clk
0:02:21.8]} 19... Ng5 {[%clk 0:00:49]} 20. Nxg5 {[%clk 0:02:09.5]} 20... Qxg5
{[%clk 0:00:48.7]} 21. dxe6 {[%clk 0:02:04.3]} 21... Qxe3 {[%clk 0:00:46.9]} 22.
exf7+ {[%clk 0:02:00.9]} 22... Bxf7 {[%clk 0:00:46.9]} 23. Rxe3 {[%clk
0:02:01.6]} 23... Nc4 {[%clk 0:00:42.8]} 24. Re7 {[%clk 0:01:46]} 24... Nxb2
{[%clk 0:00:40.6]} 25. Rxd8+ {[%clk 0:01:32.6]} 25... Rxd8 {[%clk 0:00:41.5]}
26. Rxb7 {[%clk 0:01:32.6]} 26... Rc8 {[%clk 0:00:38]} 27. Rxb2 {[%clk 0:01:24]}
27... Rxc3 {[%clk 0:00:37.1]} 28. h3 {[%clk 0:01:20.1]} 28... Kg7 {[%clk
0:00:32]} 29. Be4 {[%clk 0:01:14.5]} 29... Ra3 {[%clk 0:00:26.9]} 30. Rb7 {[%clk
0:01:11.8]} 30... Kf6 {[%clk 0:00:22]} 31. f4 {[%clk 0:00:35.3]} 31... Bxa2
{[%clk 0:00:18]} 32. Rc7 {[%clk 0:00:33.4]} 32... Bf7 {[%clk 0:00:08.9]} 33. Kh2
{[%clk 0:00:16.7]} 33... Ra4 {[%clk 0:00:07.2]} 34. Bf3 {[%clk 0:00:14.7]} 34...
a5 {[%clk 0:00:06.7]} 35. Rc6+ {[%clk 0:00:11.3]} 35... Kg7 {[%clk 0:00:06.6]}
36. g3 {[%clk 0:00:11.8]} 36... Ra2+ {[%clk 0:00:06.6]} 37. Kg1 {[%clk
0:00:11.2]} 37... Ra1+ {[%clk 0:00:03.6]} 38. Kf2 {[%clk 0:00:10.9]} 38... a4
{[%clk 0:00:04.2]} 39. Rc7 {[%clk 0:00:10.2]} 39... Kf6 {[%clk 0:00:04.7]} 40.
g4 {[%clk 0:00:09.3]} 40... a3 {[%clk 0:00:04.7]} 41. g5+ {[%clk 0:00:07.4]}
41... hxg5 {[%clk 0:00:05.1]} 42. fxg5+ {[%clk 0:00:07.7]} 42... Ke6 {[%clk
0:00:02.5]} 43. Bg4+ {[%clk 0:00:07.8]} 43... Kd6 {[%clk 0:00:02.2]} 44. Rxf7
{[%clk 0:00:07.9]} 44... a2 {[%clk 0:00:02]} 45. Rd7+ {[%clk 0:00:06.7]} 45...
Ke5 {[%clk 0:00:01.1]} 46. Rd2 {[%clk 0:00:06]} 1-0